fUSD/lending_fUSD_20240327
["ID","MTS","AMOUNT","RATE_DAILY","PERIOD"]
[320763422,1711548659632,-14149.35,0.0005452,120]
[320763423,1711548659644,-2389.53,0.0005452,120]
[320763424,1711548659653,-1559.13,0.0005452,120]
[320763425,1711548659662,-11041.69,0.0005452,120]
[320763426,1711548659671,-2639.73,0.0005452,120]
[320763427,1711548659681,-5902.28,0.0005452,120]
[320763428,1711548659690,-500.0,0.0005452,120]
[320763429,1711548659699,-500.0,0.0005452,120]
[320763430,1711548659709,-942.59,0.0005452,120]
[320763431,1711548659718,-750.01,0.0005452,120]
[320763432,1711548659728,-500.0,0.0005452,120]
[320763433,1711548659737,-1000.0,0.0005452,14]
[320763434,1711548659746,-2637.66,0.0005452,120]
[320763435,1711548659755,-2666.56,0.0005452,120]
[320763436,1711548659765,-1806.4,0.0005452,120]
[320763437,1711548659774,-730.58,0.0005452,120]
[320763438,1711548659784,-1206.49,0.0005452,120]
[320763439,1711548659793,-3750.59,0.0005452,120]
[320763440,1711548659802,-593.73,0.0005452,120]
[320763441,1711548659812,-500.0,0.0005452,120]
[320763442,1711548659821,-500.0,0.0005452,120]
[320763443,1711548659830,-500.0,0.0005452,120]
[320763444,1711548659839,-1771.81,0.0005452,120]
[320763445,1711548659848,-1056.42,0.0005452,120]
[320763446,1711548659858,-5068.43,0.0005452,120]
[320763447,1711548659867,-1610.16,0.0005452,120]
[320763448,1711548659876,-3225.32,0.0005452,120]
[320763449,1711548659886,-606.83,0.0005452,120]
[320763450,1711548659900,-229.52,0.0005452,120]
[320763451,1711548659909,-500.0,0.0005452,120]
[320763452,1711548659919,-3992.02,0.0005452,120]
[320763453,1711548659928,-2194.68,0.0005452,120]
[320763454,1711548659937,-2162.11,0.0005452,120]
[320763455,1711548659946,-504.08,0.0005452,120]
[320763456,1711548659955,-500.0,0.0005452,120]
[320763457,1711548659964,-500.0,0.0005452,120]
[320763458,1711548659973,-1425.36,0.0005452,120]
[320763459,1711548659982,-1537.95,0.0005452,120]
[320763460,1711548659992,-2085.45,0.0005452,120]
[320763461,1711548660001,-3285.27,0.0005452,120]
[320763462,1711548660010,-500.0,0.0005452,120]
[320763463,1711548660019,-500.0,0.0005452,120]
[320763464,1711548660029,-1437.83,0.0005452,120]
[320763465,1711548660040,-500.0,0.0005452,120]
[320763466,1711548660049,-500.0,0.0005452,120]
[320763467,1711548660059,-10448.83,0.0005452,120]
[320763468,1711548660068,-501.34,0.0005452,120]
[320763469,1711548660080,-500.0,0.0005452,120]
[320763470,1711548660090,-13709.87,0.0005452,120]
[320763471,1711548660099,-592.67448409,0.0005452,120]
[320763472,1711548660108,-3954.78,0.0005452,120]
[320763473,1711548660117,-2200.99,0.0005452,120]
[320763474,1711548660126,-8554.35,0.0005452,120]
[320763475,1711548660136,-1792.88,0.0005452,120]
[320763476,1711548660149,-500.0,0.0005452,7]
[320763477,1711548660159,-500.0,0.0005452,120]
[320763478,1711548660169,-1706.58,0.0005452,120]
[320763479,1711548660179,-649.21,0.0005452,120]
[320763480,1711548660188,-2897.81,0.0005452,120]
[320763481,1711548660197,-830.82,0.0005452,120]
[320763482,1711548660207,-5115.71,0.0005452,120]
[320763483,1711548660216,-3261.78,0.0005452,120]
[320763484,1711548660226,-2227.37,0.0005452,120]
[320763485,1711548660235,-2478.2,0.0005452,120]
[320763486,1711548660244,-5578.99,0.0005452,120]
[320763487,1711548660253,-2756.18,0.0005452,120]
[320763488,1711548660263,-500.0,0.0005452,120]
[320763489,1711548660272,-4240.97,0.0005452,120]
[320763490,1711548660281,-500.0,0.0005452,120]
[320763491,1711548660290,-722.67,0.0005452,120]
[320763492,1711548660299,-1765.85,0.0005452,120]
[320763493,1711548660308,-11605.54,0.0005452,120]
[320763494,1711548660318,-524.0,0.0005452,120]
[320763495,1711548660492,-4070.26,0.0005452,120]
[320763496,1711548660501,-607.83,0.0005452,120]
[320763497,1711548660511,-2969.84,0.0005452,120]
[320763498,1711548660521,-628.05,0.0005452,120]
[320763499,1711548660530,-4109.25,0.0005452,120]
[320763500,1711548660540,-532.16,0.0005452,120]
[320763501,1711548660550,-752.43,0.0005452,120]
[320763502,1711548660560,-2201.6,0.0005452,120]
[320763503,1711548660570,-680.74,0.0005452,120]
[320763504,1711548660580,-3648.92,0.0005452,120]
[320763505,1711548660590,-500.0,0.0005452,120]
[320763506,1711548660600,-9841.03,0.0005452,120]
[320763507,1711548660611,-1817.15,0.0005452,120]
[320763508,1711548660621,-599.5,0.0005452,120]
[320763509,1711548660631,-1150.23,0.0005452,120]
[320763510,1711548660646,-500.0,0.0005452,120]
[320763511,1711548660659,-500.0,0.0005452,120]
[320763512,1711548660669,-500.0,0.0005452,120]
[320763513,1711548660680,-991.16,0.0005452,120]
[320763514,1711548660691,-5027.34,0.0005452,120]
[320763515,1711548660700,-14198.45,0.0005452,120]
[320763516,1711548660710,-500.0,0.0005452,120]
[320763517,1711548660719,-1422.74,0.0005452,120]
[320763518,1711548660729,-1819.42,0.0005452,120]
[320763519,1711548660738,-500.0,0.0005452,120]
[320763520,1711548660748,-578.09,0.0005452,120]
[320763521,1711548660759,-1921.89,0.0005452,120]
[320763522,1711548660769,-2291.89,0.0005452,120]
[320763523,1711548660779,-764.46,0.0005452,120]
[320763524,1711548660789,-674.22,0.0005452,120]
[320763525,1711548660799,-565.22,0.0005452,120]
[320763526,1711548660810,-500.0,0.0005452,120]
[320763527,1711548660820,-500.0,0.0005452,120]
[320763528,1711548660830,-4364.34,0.0005452,120]
[320763529,1711548660839,-500.0,0.0005452,120]
[320763530,1711548660849,-41001.31,0.0005452,120]
[320763531,1711548660858,-504.01,0.0005452,120]
[320763532,1711548660868,-781.22,0.0005452,120]
[320763533,1711548660877,-500.0,0.0005452,120]
[320763534,1711548660887,-500.0,0.0005452,120]
[320763535,1711548660906,-500.0,0.0005452,120]
[320763536,1711548660916,-173.9,0.000546,30]
[320763537,1711548660926,-537.0,0.00054673,120]
[320763538,1711548660936,-303048.94358736,0.00054691,30]
[320763539,1711548660945,-151.0,0.00054691,120]
[320763540,1711548660955,-151.0,0.00054691,120]
[320763541,1711548660964,-151.0,0.00054691,30]
[320763542,1711548660975,-500.0,0.00054691,60]
[320763543,1711548660985,-500.0,0.00054691,60]
[320763544,1711548660995,-685.528576,0.00054691,120]
[320763545,1711548661005,-151.0,0.00054691,120]
[320763546,1711548661016,-685.528576,0.00054691,120]
[320763547,1711548661027,-151.0,0.00054691,120]
[320763548,1711548661038,-151.0,0.00054691,120]
[320763549,1711548661049,-151.0,0.00054691,14]
[320763550,1711548661060,-163.255056,0.00054691,120]
[320763551,1711548661071,-163.255056,0.00054691,120]
[320763552,1711548661085,-151.0,0.00054691,120]
[320763553,1711548661098,-152.10275518,0.00054702,60]
[320763554,1711548661109,-4645.35,0.0005479,120]
[320763555,1711548661120,-500.0,0.00054793,90]
[320763556,1711548661132,-500.0,0.00054793,90]
[320763557,1711548661148,-200.0,0.00054794,120]
[320763558,1711548661159,-2000.0,0.00054794,120]
[320763559,1711548661170,-500.0,0.00054794,120]
[320763560,1711548661181,-230.67,0.00054794,120]
[320763561,1711548661192,-500.0,0.00054794,120]
[320763562,1711548661203,-500.0,0.00054794,120]
[320763563,1711548661214,-500.0,0.00054794,120]
[320763564,1711548661226,-410.9987871,0.00054794,120]
[320763565,1711548661238,-500.0,0.00054794,120]
[320763566,1711548661249,-500.0,0.00054794,120]
[320763567,1711548661260,-500.0,0.00054794,120]
[320763568,1711548661272,-500.0,0.00054794,120]
[320763569,1711548661285,-500.0,0.00054794,120]
[320763570,1711548661296,-500.0,0.00054794,120]
[320763571,1711548661307,-500.0,0.00054794,120]
[320763572,1711548661317,-500.0,0.00054794,120]
[320763573,1711548661329,-500.0,0.00054794,120]
[320763574,1711548661340,-500.0,0.00054794,120]
[320763575,1711548661351,-500.0,0.00054794,120]
[320763576,1711548661362,-500.0,0.00054794,120]
[320763577,1711548661372,-500.0,0.00054794,120]
[320763578,1711548661383,-500.0,0.00054794,120]
[320763579,1711548661398,-500.0,0.00054794,120]
[320763580,1711548661410,-176.07,0.00054794,120]
[320763581,1711548661419,-500.0,0.00054794,120]
[320763582,1711548661430,-500.0,0.00054794,120]
[320763583,1711548661439,-500.0,0.00054794,120]
[320763584,1711548661449,-500.0,0.00054794,120]
[320763585,1711548661460,-500.0,0.00054794,120]
[320763586,1711548661470,-500.0,0.00054794,120]
[320763587,1711548661480,-500.0,0.00054794,120]
[320763588,1711548661490,-500.0,0.00054794,85]
[320763589,1711548661499,-500.0,0.00054794,120]
[320763590,1711548661509,-1068.87,0.00054794,120]
[320763591,1711548661519,-500.0,0.00054794,120]
[320763592,1711548661529,-813.5,0.00054794,120]
[320763593,1711548661539,-500.0,0.00054794,120]
[320763594,1711548661548,-500.0,0.00054794,120]
[320763595,1711548661558,-500.0,0.00054794,120]
[320763596,1711548661567,-1350.95,0.00054794,120]
[320763597,1711548661578,-638.57393687,0.00054794,120]
[320763598,1711548661588,-500.0,0.00054794,120]
[320763599,1711548661598,-500.0,0.00054794,120]
[320763600,1711548661608,-755.43,0.00054794,120]
[320763601,1711548661617,-500.0,0.00054794,120]
[320763602,1711548661626,-500.0,0.00054794,120]
[320763603,1711548661636,-1194.68,0.00054794,120]
[320763604,1711548661652,-500.0,0.00054794,120]
[320763605,1711548661662,-790.26,0.00054794,120]
[320763606,1711548661672,-500.0,0.00054794,120]
[320763607,1711548661681,-1262.57,0.00054794,120]
[320763608,1711548661690,-1294.42,0.00054794,120]
[320763609,1711548661700,-500.0,0.00054794,120]
[320763610,1711548661709,-902.57,0.00054794,120]
[320763611,1711548661719,-698.91,0.00054794,120]
[320763612,1711548661728,-500.0,0.00054794,120]
[320763613,1711548661738,-500.0,0.00054794,120]
[320763614,1711548661747,-500.0,0.00054794,120]
[320763615,1711548661757,-566.19,0.00054794,120]
[320763616,1711548661766,-1313.13,0.00054794,120]
[320763617,1711548661776,-500.0,0.00054794,120]
[320763618,1711548661786,-705.99,0.00054794,120]
[320763619,1711548661795,-500.0,0.00054794,120]
[320763620,1711548661804,-500.0,0.00054794,120]
[320763621,1711548661814,-3428.7,0.00054794,120]
[320763622,1711548661824,-339.52,0.00054794,120]
[320763623,1711548661834,-500.0,0.00054794,120]
[320763624,1711548661843,-500.0,0.00054794,120]
[320763625,1711548661853,-368.8,0.00054794,120]
[320763626,1711548661863,-500.0,0.00054794,120]
[320763627,1711548661873,-500.0,0.00054794,120]
[320763628,1711548661882,-500.0,0.00054794,120]
[320763629,1711548661891,-1529.41,0.00054794,120]
[320763630,1711548661908,-2009.11,0.00054794,120]
[320763631,1711548661918,-500.0,0.00054794,120]
[320763632,1711548661930,-500.0,0.00054794,120]
[320763633,1711548661940,-500.0,0.00054794,120]
[320763634,1711548661950,-500.0,0.00054794,120]
[320763635,1711548661960,-1427.39,0.00054794,120]
[320763636,1711548661970,-343.32,0.00054794,120]
[320763637,1711548661980,-728.9,0.00054794,120]
[320763638,1711548661991,-500.0,0.00054794,120]
[320763639,1711548662001,-500.0,0.00054794,120]
[320763640,1711548662011,-500.0,0.00054794,120]
[320763641,1711548662020,-500.0,0.00054794,120]
[320763642,1711548662030,-502.14363018,0.00054794,120]
[320763643,1711548662045,-500.0,0.00054794,120]
[320763644,1711548662054,-500.0,0.00054794,120]
[320763645,1711548662065,-895.13,0.00054794,120]
[320763646,1711548662074,-500.0,0.00054794,120]
[320763647,1711548662087,-500.0,0.00054794,120]
[320763648,1711548662096,-500.0,0.00054794,120]
[320763649,1711548662107,-500.0,0.00054794,120]
[320763650,1711548662120,-151.0,0.00054794,30]
[320763651,1711548662132,-500.0,0.00054794,120]
[320763652,1711548662146,-500.0,0.00054794,120]
[320763653,1711548662156,-500.0,0.00054794,120]
[320763654,1711548662165,-151.0,0.00054794,120]
[320763655,1711548662175,-500.0,0.00054794,120]
[320763656,1711548662184,-818.85,0.00054794,120]
[320763657,1711548662193,-151.0,0.00054794,30]
[320763658,1711548662203,-501.42,0.00054794,120]
[320763659,1711548662212,-871.38,0.00054794,120]
[320763660,1711548662221,-1622.87,0.00054794,120]
[320763661,1711548662231,-212.36,0.00054794,120]
[320763662,1711548662240,-500.0,0.00054794,120]
[320763663,1711548662250,-500.0,0.00054794,120]
[320763664,1711548662259,-500.0,0.00054794,120]
[320763665,1711548662269,-500.0,0.00054794,120]
[320763666,1711548662279,-500.0,0.00054794,120]
[320763667,1711548662290,-500.0,0.00054794,120]
[320763668,1711548662299,-500.0,0.00054794,120]
[320763669,1711548662309,-500.0,0.00054794,120]
[320763670,1711548662320,-562.17,0.00054794,120]
[320763671,1711548662329,-500.0,0.00054794,120]
[320763672,1711548662339,-596.07,0.00054794,120]
[320763673,1711548662348,-500.0,0.00054794,120]
[320763674,1711548662357,-500.0,0.00054794,120]
[320763675,1711548662366,-500.0,0.00054794,120]
[320763676,1711548662376,-500.0,0.00054794,120]
[320763677,1711548662385,-500.0,0.00054794,120]
[320763678,1711548662399,-586.6,0.00054794,120]
[320763679,1711548662409,-1399.33,0.00054794,120]
[320763680,1711548662419,-500.0,0.00054794,120]
[320763681,1711548662429,-500.0,0.00054794,120]
[320763682,1711548662439,-500.0,0.00054794,120]
[320763683,1711548662449,-500.0,0.00054794,120]
[320763684,1711548662458,-500.0,0.00054794,120]
[320763685,1711548662467,-500.0,0.00054794,120]
[320763686,1711548662476,-731.85,0.00054794,120]
[320763687,1711548662485,-1851.27,0.00054794,120]
[320763688,1711548662495,-500.0,0.00054794,120]
[320763689,1711548662504,-151.0,0.00054794,120]
[320763690,1711548662514,-500.0,0.00054794,120]
[320763691,1711548662524,-500.0,0.00054794,120]
[320763692,1711548662534,-515.45,0.00054794,120]
[320763693,1711548662544,-500.0,0.00054794,120]
[320763694,1711548662554,-500.0,0.00054794,120]
[320763695,1711548662563,-722.22,0.00054794,120]
[320763696,1711548662573,-500.0,0.00054794,120]
[320763697,1711548662583,-500.0,0.00054794,120]
[320763698,1711548662595,-669.98,0.00054794,120]
[320763699,1711548662605,-210.496403,0.00054794,120]
[320763700,1711548662614,-500.0,0.00054794,120]
[320763701,1711548662624,-511.69,0.00054794,60]
[320763702,1711548662634,-711.78,0.00054794,120]
[320763703,1711548662648,-551.61560999,0.00054794,120]
[320763704,1711548662657,-210.496403,0.00054794,120]
[320763705,1711548662667,-500.0,0.00054794,120]
[320763706,1711548662676,-500.0,0.00054794,120]
[320763707,1711548662687,-500.0,0.00054794,120]
[320763708,1711548662696,-500.0,0.00054794,120]
[320763709,1711548662705,-500.0,0.00054794,120]
[320763710,1711548662716,-500.0,0.00054794,120]
[320763711,1711548662726,-501.58,0.00054794,120]
[320763712,1711548662735,-500.0,0.00054794,120]
[320763713,1711548662745,-500.0,0.00054794,120]
[320763714,1711548662754,-557.13,0.00054794,120]
[320763715,1711548662764,-500.0,0.00054794,120]
[320763716,1711548662773,-500.0,0.00054794,120]
[320763717,1711548662782,-520.513548,0.00054794,120]
[320763718,1711548662791,-526.51,0.00054794,120]
[320763719,1711548662801,-500.0,0.00054794,120]
[320763720,1711548662811,-545.46,0.00054794,120]
[320763721,1711548662820,-1711.29,0.00054794,120]
[320763722,1711548662829,-500.0,0.00054794,120]
[320763723,1711548662839,-520.513548,0.00054794,120]
[320763724,1711548662848,-500.0,0.00054794,120]
[320763725,1711548662857,-188.24,0.00054794,120]
[320763726,1711548662867,-500.0,0.00054794,120]
[320763727,1711548662876,-661.99,0.00054794,120]
[320763728,1711548662885,-759.71,0.00054794,120]
[320763729,1711548662900,-500.0,0.00054794,120]
[320763730,1711548662910,-500.0,0.00054794,120]
[320763731,1711548662919,-500.0,0.00054794,120]
[320763732,1711548662929,-706.83,0.00054794,120]
[320763733,1711548662940,-500.0,0.00054794,120]
[320763734,1711548662954,-500.0,0.00054794,120]
[320763735,1711548662964,-500.0,0.00054794,120]
[320763736,1711548662973,-500.0,0.00054794,120]
[320763737,1711548662982,-706.38,0.00054794,120]
[320763738,1711548662991,-500.0,0.00054794,120]
[320763739,1711548663001,-500.0,0.00054794,120]
[320763740,1711548663010,-151.0,0.00054794,120]
[320763741,1711548663019,-500.0,0.00054794,120]
[320763742,1711548663028,-608.01,0.00054794,120]
[320763743,1711548663039,-500.0,0.00054794,120]
[320763744,1711548663050,-500.0,0.00054794,120]
[320763745,1711548663059,-1402.7,0.00054794,120]
[320763746,1711548663069,-500.0,0.00054794,120]
[320763747,1711548663083,-500.0,0.00054794,120]
[320763748,1711548663093,-500.0,0.00054794,120]
[320763749,1711548663102,-569.67609665,0.00054794,120]
[320763750,1711548663111,-500.0,0.00054794,120]
[320763751,1711548663120,-500.0,0.00054794,120]
[320763752,1711548663130,-544.06,0.00054794,120]
[320763753,1711548663140,-500.0,0.00054794,120]
[320763754,1711548663153,-500.0,0.00054794,120]
[320763755,1711548663163,-1532.84,0.00054794,120]
[320763756,1711548663173,-491.06,0.00054794,120]
[320763757,1711548663183,-500.0,0.00054794,120]
[320763758,1711548663192,-674.43,0.00054794,120]
[320763759,1711548663201,-500.0,0.00054794,120]
[320763760,1711548663210,-527.56,0.00054794,120]
[320763761,1711548663219,-500.0,0.00054794,120]
[320763762,1711548663229,-500.0,0.00054794,120]
[320763763,1711548663238,-500.0,0.00054794,120]
[320763764,1711548663248,-500.0,0.00054794,120]
[320763765,1711548663257,-500.0,0.00054794,120]
[320763766,1711548663266,-633.57,0.00054794,120]
[320763767,1711548663275,-151.0,0.00054794,120]
[320763768,1711548663284,-500.0,0.00054794,120]
[320763769,1711548663293,-743.26,0.00054794,120]
[320763770,1711548663302,-500.0,0.00054794,120]
[320763771,1711548663310,-500.0,0.00054794,120]
[320763772,1711548663319,-500.0,0.00054794,120]
[320763773,1711548663329,-500.0,0.00054794,120]
[320763774,1711548663338,-709.56,0.00054794,120]
[320763775,1711548663347,-500.0,0.00054794,120]
[320763776,1711548663356,-867.45,0.00054794,120]
[320763777,1711548663365,-500.0,0.00054794,120]
[320763778,1711548663374,-500.0,0.00054794,120]
[320763779,1711548663383,-151.0,0.00054794,120]
[320763780,1711548663397,-330.055864,0.00054794,120]
[320763781,1711548663406,-1526.7,0.00054794,120]
[320763782,1711548663415,-500.0,0.00054794,120]
[320763783,1711548663424,-500.0,0.00054794,120]
[320763784,1711548663434,-500.0,0.00054794,120]
[320763785,1711548663443,-500.0,0.00054794,120]
[320763786,1711548663452,-1389.07,0.00054794,120]
[320763787,1711548663461,-500.0,0.00054794,120]
[320763788,1711548663471,-330.055864,0.00054794,120]
[320763789,1711548663480,-500.0,0.00054794,120]
[320763790,1711548663489,-500.0,0.00054794,120]
[320763791,1711548663498,-500.0,0.00054794,120]
[320763792,1711548663507,-500.0,0.00054794,120]
[320763793,1711548663516,-500.0,0.00054794,120]
[320763794,1711548663526,-500.0,0.00054794,120]
[320763795,1711548663535,-500.0,0.00054794,120]
[320763796,1711548663543,-426.971616,0.00054794,120]
[320763797,1711548663553,-585.94,0.00054794,120]
[320763798,1711548663562,-500.0,0.00054794,120]
[320763799,1711548663571,-500.0,0.00054794,120]
[320763800,1711548663580,-426.971616,0.00054794,120]
[320763801,1711548663589,-386.937245,0.00054794,120]
[320763802,1711548663598,-500.0,0.00054794,120]
[320763803,1711548663607,-547.86,0.00054794,30]
[320763804,1711548663616,-281.621109,0.00054794,120]
[320763805,1711548663625,-500.0,0.00054794,120]
[320763806,1711548663635,-386.937245,0.00054794,120]
[320763807,1711548663648,-500.0,0.00054794,120]
[320763808,1711548663658,-500.0,0.00054794,120]
[320763809,1711548663667,-664.05,0.00054794,120]
[320763810,1711548663677,-500.0,0.00054794,120]
[320763811,1711548663686,-500.0,0.00054794,120]
[320763812,1711548663695,-391.54,0.00054794,120]
[320763813,1711548663705,-500.0,0.00054794,120]
[320763814,1711548663715,-500.0,0.00054794,120]
[320763815,1711548663724,-168.799909,0.00054794,120]
[320763816,1711548663734,-656.68,0.00054794,120]
[320763817,1711548663743,-526.37,0.00054794,120]
[320763818,1711548663753,-500.0,0.00054794,120]
[320763819,1711548663762,-168.799909,0.00054794,120]
[320763820,1711548663924,-500.0,0.00054794,120]
[320763821,1711548663934,-500.0,0.00054794,120]
[320763822,1711548663943,-500.0,0.00054794,120]
[320763823,1711548663952,-611.21,0.00054794,120]
[320763824,1711548663961,-194.232275,0.00054794,7]
[320763825,1711548663970,-500.0,0.00054794,120]
[320763826,1711548663978,-500.0,0.00054794,120]
[320763827,1711548663989,-500.0,0.00054794,120]
[320763828,1711548663998,-578.74,0.00054794,120]
[320763829,1711548664008,-612.98,0.00054794,120]
[320763830,1711548664018,-425.17,0.00054794,120]
[320763831,1711548664027,-500.0,0.00054794,120]
[320763832,1711548664037,-500.0,0.00054794,120]
[320763833,1711548664047,-500.0,0.00054794,120]
[320763834,1711548664057,-500.0,0.00054794,120]
[320763835,1711548664067,-151.0,0.00054794,120]
[320763836,1711548664076,-927.68,0.00054794,120]
[320763837,1711548664088,-500.0,0.00054794,120]
[320763838,1711548664098,-501.87,0.00054794,120]
[320763839,1711548664106,-583.89,0.00054794,120]
[320763840,1711548664116,-500.0,0.00054794,120]
[320763841,1711548664126,-500.0,0.00054794,120]
[320763842,1711548664136,-500.0,0.00054794,120]
[320763843,1711548664149,-500.0,0.00054794,120]
[320763844,1711548664159,-1388.0,0.00054794,120]
[320763845,1711548664168,-500.0,0.00054794,120]
[320763846,1711548664178,-500.0,0.00054794,120]
[320763847,1711548664187,-738.82,0.00054794,120]
[320763848,1711548664197,-500.0,0.00054794,120]
[320763849,1711548664207,-500.0,0.00054794,120]
[320763850,1711548664216,-500.0,0.00054794,120]
[320763851,1711548664225,-500.0,0.00054794,120]
[320763852,1711548664234,-500.0,0.00054794,120]
[320763853,1711548664244,-1366.46,0.00054794,120]
[320763854,1711548664253,-517.66409499,0.00054794,120]
[320763855,1711548664262,-500.0,0.00054794,120]
[320763856,1711548664272,-500.0,0.00054794,120]
[320763857,1711548664281,-500.0,0.00054794,120]
[320763858,1711548664290,-500.0,0.00054794,120]
[320763859,1711548664299,-750.86,0.00054794,120]
[320763860,1711548664308,-500.0,0.00054794,120]
[320763861,1711548664317,-500.0,0.00054794,120]
[320763862,1711548664326,-500.0,0.00054794,120]
[320763863,1711548664334,-503.45,0.00054794,120]
[320763864,1711548664343,-500.0,0.00054794,120]
[320763865,1711548664353,-500.0,0.00054794,120]
[320763866,1711548664362,-527.46,0.00054794,120]
[320763867,1711548664371,-500.0,0.00054794,120]
[320763868,1711548664381,-375.93,0.00054794,120]
[320763869,1711548664390,-500.0,0.00054794,120]
[320763870,1711548664406,-500.0,0.00054794,120]
[320763871,1711548664415,-500.0,0.00054794,120]
[320763872,1711548664424,-500.0,0.00054794,120]
[320763873,1711548664433,-500.0,0.00054794,120]
[320763874,1711548664442,-25132.99,0.00054794,120]
[320763875,1711548664453,-151.0,0.00054794,120]
[320763876,1711548664463,-552.92,0.00054794,120]
[320763877,1711548664472,-500.0,0.00054794,120]
[320763878,1711548664481,-500.0,0.00054794,120]
[320763879,1711548664490,-500.0,0.00054794,120]
[320763880,1711548664499,-698.55,0.00054794,120]
[320763881,1711548664510,-500.0,0.00054794,120]
[320763882,1711548664521,-500.0,0.00054794,120]
[320763883,1711548664532,-500.0,0.00054794,120]
[320763884,1711548664542,-151.0,0.00054794,120]
[320763885,1711548664552,-500.0,0.00054794,120]
[320763886,1711548664562,-500.0,0.00054794,120]
[320763887,1711548664573,-376.410152,0.00054794,120]
[320763888,1711548664582,-500.0,0.00054794,120]
[320763889,1711548664592,-500.0,0.00054794,120]
[320763890,1711548664601,-376.410152,0.00054794,120]
[320763891,1711548664610,-641.12,0.00054794,120]
[320763892,1711548664619,-4159.08,0.00054794,120]
[320763893,1711548664629,-500.0,0.00054794,120]
[320763894,1711548664638,-1027.4,0.00054794,120]
[320763895,1711548664657,-151.0,0.00054794,120]
[320763896,1711548664667,-6995.52,0.00054794,120]
[320763897,1711548664676,-500.0,0.00054794,120]
[320763898,1711548664686,-4012.43,0.00054794,120]
[320763899,1711548664695,-500.0,0.00054794,120]
[320763900,1711548664704,-500.0,0.00054794,120]
[320763901,1711548664714,-501.41,0.00054794,120]
[320763902,1711548664723,-500.0,0.00054794,120]
[320763903,1711548664732,-500.0,0.00054794,120]
[320763904,1711548664741,-500.0,0.00054794,120]
[320763905,1711548664751,-500.0,0.00054794,120]
[320763906,1711548664760,-727.55,0.00054794,120]
[320763907,1711548664771,-500.0,0.00054794,120]
[320763908,1711548664780,-500.0,0.00054794,120]
[320763909,1711548664791,-500.0,0.00054794,120]
[320763910,1711548664801,-530.5,0.00054794,120]
[320763911,1711548664811,-524.95,0.00054794,120]
[320763912,1711548664821,-151.0,0.00054794,120]
[320763913,1711548664831,-500.0,0.00054794,120]
[320763914,1711548664841,-500.0,0.00054794,7]
[320763915,1711548664850,-607.46,0.00054794,120]
[320763916,1711548664860,-500.0,0.00054794,120]
[320763917,1711548664869,-151.0,0.00054794,120]
[320763918,1711548664878,-3151.03,0.00054794,120]
[320763919,1711548664888,-2427.12,0.00054794,120]
[320763920,1711548664902,-991.32,0.00054794,120]
[320763921,1711548664911,-2608.24,0.00054794,120]